Workbook

Sheet SalesOrders
A1: OrderDate | B1: Region | C1: Rep | D1: Item | E1: Units | F1: Unit Cost | G1: Total
A2: 2014-01-06 | B2: East | C2: Jones | D2: Pencil | E2: 95 | F2: 1.99 | G2: =F2*E2 -> 189.05
A3: 2014-01-23 | B3: Central | C3: Kivell | D3: Binder | E3: 50 | F3: 19.99 | G3: =F3*E3 -> 999.50
A4: 2014-02-09 | B4: Central | C4: Jardine | D4: Pencil | E4: 36 | F4: 4.99 | G4: =F4*E4 -> 179.64
A5: 2014-02-26 | B5: Central | C5: Gill | D5: Pen | E5: 27 | F5: 19.99 | G5: =F5*E5 -> 539.73
A6: 2014-03-15 | B6: West | C6: Sorvino | D6: Pencil | E6: 56 | F6: 2.99 | G6: =F6*E6 -> 167.44
A7: 2014-04-01 | B7: East | C7: Jones | D7: Binder | E7: 60 | F7: 4.99 | G7: =F7*E7 -> 299.40
A8: 2014-04-18 | B8: Central | C8: Andrews | D8: Pencil | E8: 75 | F8: 1.99 | G8: =F8*E8 -> 149.25
A9: 2014-05-05 | B9: Central | C9: Jardine | D9: Pencil | E9: 90 | F9: 4.99 | G9: =F9*E9 -> 449.10
A10: 2014-05-22 | B10: West | C10: Thompson | D10: Pencil | E10: 32 | F10: 1.99 | G10: =F10*E10 -> 63.68
A11: 2014-06-08 | B11: East | C11: Jones | D11: Binder | E11: 60 | F11: 8.99 | G11: =F11*E11 -> 539.40
A12: 2014-06-25 | B12: Central | C12: Morgan | D12: Pencil | E12: 90 | F12: 4.99 | G12: =F12*E12 -> 449.10
A13: 2014-07-12 | B13: East | C13: Howard | D13: Binder | E13: 29 | F13: 1.99 | G13: =F13*E13 -> 57.71
A14: 2014-07-29 | B14: East | C14: Parent | D14: Binder | E14: 81 | F14: 19.99 | G14: =F14*E14 -> 1,619.19
A15: 2014-08-15 | B15: East | C15: Jones | D15: Pencil | E15: 35 | F15: 4.99 | G15: =F15*E15 -> 174.65
A16: 2014-09-01 | B16: Central | C16: Smith | D16: Desk | E16: 2 | F16: 125.00 | G16: =F16*E16 -> 250.00
A17: 2014-09-18 | B17: East | C17: Jones | D17: Pen Set | E17: 16 | F17: 15.99 | G17: =F17*E17 -> 255.84
A18: 2014-10-05 | B18: Central | C18: Morgan | D18: Binder | E18: 28 | F18: 8.99 | G18: =F18*E18 -> 251.72
A19: 2014-10-22 | B19: East | C19: Jones | D19: Pen | E19: 64 | F19: 8.99 | G19: =F19*E19 -> 575.36
A20: 2014-11-08 | B20: East | C20: Parent | D20: Pen | E20: 15 | F20: 19.99 | G20: =F20*E20 -> 299.85
A21: 2014-11-25 | B21: Central | C21: Kivell | D21: Pen Set | E21: 96 | F21: 4.99 | G21: =F21*E21 -> 479.04
A22: 2014-12-12 | B22: Central | C22: Smith | D22: Pencil | E22: 67 | F22: 1.29 | G22: =F22*E22 -> 86.43
A23: 2014-12-29 | B23: East | C23: Parent | D23: Pen Set | E23: 74 | F23: 15.99 | G23: =F23*E23 -> 1,183.26
A24: 2015-01-15 | B24: Central | C24: Gill | D24: Binder | E24: 46 | F24: 8.99 | G24: =F24*E24 -> 413.54
A25: 2015-02-01 | B25: Central | C25: Smith | D25: Binder | E25: 87 | F25: 15.00 | G25: =F25*E25 -> 1,305.00
A26: 2015-02-18 | B26: East | C26: Jones | D26: Binder | E26: 4 | F26: 4.99 | G26: =F26*E26 -> 19.96
A27: 2015-03-07 | B27: West | C27: Sorvino | D27: Binder | E27: 7 | F27: 19.99 | G27: =F27*E27 -> 139.93
A28: 2015-03-24 | B28: Central | C28: Jardine | D28: Pen Set | E28: 50 | F28: 4.99 | G28: =F28*E28 -> 249.50
A29: 2015-04-10 | B29: Central | C29: Andrews | D29: Pencil | E29: 66 | F29: 1.99 | G29: =F29*E29 -> 131.34
A30: 2015-04-27 | B30: East | C30: Howard | D30: Pen | E30: 96 | F30: 4.99 | G30: =F30*E30 -> 479.04
A31: 2015-05-14 | B31: Central | C31: Gill | D31: Pencil | E31: 53 | F31: 1.29 | G31: =F31*E31 -> 68.37
A32: 2015-05-31 | B32: Central | C32: Gill | D32: Binder | E32: 80 | F32: 8.99 | G32: =F32*E32 -> 719.20
A33: 2015-06-17 | B33: Central | C33: Kivell | D33: Desk | E33: 5 | F33: 125.00 | G33: =F33*E33 -> 625.00
A34: 2015-07-04 | B34: East | C34: Jones | D34: Pen Set | E34: 62 | F34: 4.99 | G34: =F34*E34 -> 309.38
A35: 2015-07-21 | B35: Central | C35: Morgan | D35: Pen Set | E35: 55 | F35: 12.49 | G35: =F35*E35 -> 686.95
A36: 2015-08-07 | B36: Central | C36: Kivell | D36: Pen Set | E36: 42 | F36: 23.95 | G36: =F36*E36 -> 1,005.90
A37: 2015-08-24 | B37: West | C37: Sorvino | D37: Desk | E37: 3 | F37: 275.00 | G37: =F37*E37 -> 825.00
A38: 2015-09-10 | B38: Central | C38: Gill | D38: Pencil | E38: 7 | F38: 1.29 | G38: =F38*E38 -> 9.03
A39: 2015-09-27 | B39: West | C39: Sorvino | D39: Pen | E39: 76 | F39: 1.99 | G39: =F39*E39 -> 151.24
A40: 2015-10-14 | B40: West | C40: Thompson | D40: Binder | E40: 57 | F40: 19.99 | G40: =F40*E40 -> 1,139.43
A41: 2015-10-31 | B41: Central | C41: Andrews | D41: Pencil | E41: 14 | F41: 1.29 | G41: =F41*E41 -> 18.06
A42: 2015-11-17 | B42: Central | C42: Jardine | D42: Binder | E42: 11 | F42: 4.99 | G42: =F42*E42 -> 54.89
A43: 2015-12-04 | B43: Central | C43: Jardine | D43: Binder | E43: 94 | F43: 19.99 | G43: =F43*E43 -> 1,879.06
A44: 2015-12-21 | B44: Central | C44: Andrews | D44: Binder | E44: 28 | F44: 4.99 | G44: =F44*E44 -> 139.72
